bitfinex/quotes_SOLUSD_20250814
["timestamp","ask_amount","ask_price","bid_price","bid_amount"]
[1755187339862,38.42,194.74,194.7,0.67]
[1755187340161,5.13477144,194.76,194.71,12.40668233]
[1755187340361,11.73668233,194.73,194.69,0.03]
[1755187340675,11.73668233,194.74,194.7,0.67]
[1755187341040,11.73668233,194.73,194.69,0.03]
[1755187341270,11.73668233,194.7,194.69,0.03]
[1755187341640,38.42,194.72,194.69,0.7]
[1755187341973,0.71,194.78,194.69,0.7]
[1755187341974,52.21128333,194.78,194.7,0.67]
[1755187342156,11.73668233,194.76,194.7,12.40668233]
[1755187342476,38.42,194.78,194.7,0.67]
[1755187343036,65.13,194.79,194.72,11.73668233]
[1755187343249,64.42,194.79,194.72,12.40668233]
[1755187343562,64.42,194.79,194.69,0.03]
[1755187343563,5.13399733,194.78,194.7,11.73668233]
[1755187343872,11.73668233,194.74,194.69,0.03]
[1755187344045,11.73668233,194.74,194.69,0.7]
[1755187344238,5.84399733,194.78,194.69,0.7]
[1755187344455,11.73668233,194.77,194.71,11.73668233]
[1755187344759,11.73668233,194.76,194.7,12.40668233]
[1755187344967,11.73668233,194.81,194.75,11.73668233]
[1755187345158,11.73668233,194.81,194.75,79.8]
[1755187345343,11.73668233,194.79,194.75,79.8]
[1755187345755,11.73668233,194.8,194.75,80.47]
[1755187345948,11.73668233,194.81,194.75,91.53668233]
[1755187346153,11.73668233,194.8,194.75,80.47]
[1755187346362,11.73668233,194.79,194.75,79.8]
[1755187346561,11.73668233,194.78,194.75,79.8]
[1755187346771,11.73668233,194.76,194.75,79.8]
[1755187347086,12.44668233,194.76,194.69,0.03]
[1755187347373,11.73668233,194.7,194.69,0.03]
[1755187347540,5.13610683,194.7,194.69,0.03]
[1755187348557,16.87278916,194.7,194.69,0.03]
[1755187349571,17.58278916,194.7,194.69,0.03]
[1755187350052,16.87278916,194.7,194.69,0.03]
[1755187350258,16.87147051,194.75,194.69,12.43668233]
[1755187350567,26.0,194.76,194.71,11.73668233]
[1755187350748,31.13459099,194.76,194.72,0.69]
[1755187351072,5.13373376,194.79,194.73,0.69]
[1755187351247,5.13373376,194.79,194.69,0.03]
[1755187351248,11.73668233,194.76,194.69,0.72]
[1755187351575,5.13557929,194.72,194.69,0.03]
[1755187351752,11.73668233,194.7,194.69,0.03]
[1755187352065,17.55226162,194.72,194.69,0.03]
[1755187352368,16.87226162,194.72,194.69,0.03]
[1755187352665,11.73668233,194.7,194.69,0.03]
[1755187353066,12.41668233,194.7,194.69,0.03]
[1755187353684,17.55278916,194.7,194.69,0.03]
[1755187354162,16.87278916,194.7,194.69,0.03]
[1755187354557,55.29278441,194.71,194.69,0.03]
[1755187354769,5.13610208,194.71,194.69,0.03]
[1755187354964,31.13568431,194.72,194.69,0.03]
[1755187355166,11.73668233,194.75,194.7,0.69]
[1755187355352,11.73668233,194.75,194.69,11.76668233]
[1755187355353,50.17668233,194.77,194.71,12.42668233]
[1755187355554,6.92086075,194.83,194.72,11.73668233]
[1755187355555,5.13294322,194.82,194.72,11.73668233]
[1755187355754,11.73668233,194.78,194.72,11.73668233]
[1755187355975,37.73668233,194.78,194.72,11.73668233]
[1755187356583,11.73668233,194.81,194.75,11.73668233]
[1755187356882,55.30962555,194.82,194.76,11.73668233]
[1755187357075,81.30962555,194.82,194.76,11.73668233]
[1755187357449,69.57294322,194.82,194.76,11.73668233]
[1755187357651,81.30962555,194.82,194.76,11.73668233]
[1755187357857,11.73668233,194.78,194.72,38.44]
[1755187358076,11.73668233,194.78,194.72,50.17668233]
[1755187358267,11.73668233,194.78,194.72,11.73668233]
[1755187358463,11.73668233,194.76,194.69,64.47]
[1755187358669,11.73668233,194.75,194.69,37.76668233]
[1755187358976,11.73668233,194.72,194.69,0.03]
[1755187359157,11.73668233,194.71,194.69,0.03]
[1755187359559,0.68,194.75,194.69,0.03]
[1755187359779,16.87190368,194.74,194.69,0.03]
[1755187359954,11.73668233,194.73,194.69,0.03]
[1755187360578,16.87190368,194.74,194.69,0.72]
[1755187360957,11.73668233,194.73,194.69,0.03]
[1755187361687,5.13522135,194.74,194.69,0.72]
[1755187361900,11.73668233,194.75,194.7,0.69]
[1755187361901,5.13481748,194.75,194.7,0.69]
[1755187362183,12.41668233,194.74,194.69,0.03]
[1755187362374,16.87149981,194.75,194.69,90.36668233]
[1755187362557,5.13481748,194.75,194.7,0.69]
[1755187362758,5.13481748,194.75,194.7,91.02668233]
[1755187363061,16.87149981,194.75,194.7,79.29]
[1755187363261,16.87149981,194.75,194.7,78.6]
[1755187363463,11.73668233,194.73,194.7,78.6]
[1755187363762,5.13557929,194.72,194.7,78.6]
[1755187363961,11.73668233,194.71,194.7,78.6]
[1755187364201,12.41668233,194.71,194.7,78.6]
[1755187364482,12.41668233,194.71,194.69,0.03]
[1755187364483,12.41668233,194.71,194.69,78.63]
[1755187364685,11.73668233,194.71,194.7,0.03]
[1755187365191,12.41668233,194.71,194.7,0.03]
[1755187366013,17.55252537,194.71,194.7,0.03]
[1755187367002,17.55252537,194.71,194.69,0.03]
[1755187367003,20.93098234,194.71,194.69,0.03]
[1755187367287,12.41668233,194.7,194.69,0.03]
[1755187367707,30.90044642,194.7,194.69,1e-08]
[1755187367870,36.03655325,194.7,194.68,1e-08]
[1755187368067,80.21423085,194.69,194.68,1e-08]
[1755187368286,80.21282908,194.69,194.68,1e-08]
[1755187369193,26.0,194.66,194.58,11.73668233]
[1755187369392,11.73668233,194.64,194.58,11.73668233]
[1755187369595,38.42,194.65,194.57,0.69]
[1755187369888,5.13795406,194.63,194.58,11.73668233]
[1755187370273,5.13795406,194.63,194.58,12.42668233]
[1755187370469,5.13795406,194.63,194.59,0.69]
[1755187370673,5.13795406,194.63,194.59,12.42668233]
[1755187371497,5.13769009,194.64,194.59,12.42668233]
[1755187371672,5.13769009,194.64,194.56,43.55978589]
[1755187371673,16.87437242,194.64,194.57,0.69]
[1755187371877,5.13769009,194.64,194.58,11.73668233]
[1755187372201,16.87437242,194.64,194.58,11.73668233]
[1755187372896,43.55745928,194.65,194.6,11.73668233]
[1755187373395,55.29414161,194.65,194.6,0.69]
[1755187373903,43.55745928,194.65,194.6,12.42668233]
[1755187374196,31.13719961,194.66,194.61,12.42668233]
[1755187374380,26.0,194.66,194.62,12.42668233]
[1755187374583,50.17668233,194.68,194.62,12.42668233]
[1755187374785,38.44,194.68,194.63,12.42668233]
[1755187374995,13.51923724,194.72,194.63,12.42668233]
[1755187374996,5.13589755,194.71,194.66,11.73668233]
[1755187375175,17.97268152,194.74,194.69,11.73668233]
[1755187375373,11.73668233,194.72,194.66,11.73668233]
[1755187375573,11.73668233,194.72,194.64,0.69]
[1755187375574,11.73668233,194.71,194.65,11.73668233]
[1755187375879,11.73668233,194.71,194.64,0.69]
[1755187375880,11.73668233,194.7,194.64,11.73668233]
[1755187376296,11.73668233,194.71,194.65,11.73668233]
[1755187376681,17.55226162,194.72,194.66,11.73668233]
[1755187376890,11.73668233,194.71,194.65,11.73668233]
[1755187377479,16.87226162,194.72,194.66,11.73668233]
[1755187377680,5.13535661,194.73,194.68,42.53668233]
[1755187377879,65.18,194.75,194.7,11.73668233]
[1755187377880,0.06,194.75,194.7,11.73668233]
[1755187378182,0.06,194.75,194.7,12.42668233]
[1755187378386,0.06,194.75,194.67,38.42]
[1755187378387,11.79668233,194.75,194.69,11.73668233]
[1755187378582,0.68,194.74,194.68,11.73668233]
[1755187378794,12.41668233,194.74,194.68,11.73668233]
[1755187379099,42.93156459,194.75,194.68,11.73668233]
[1755187379288,31.19488226,194.75,194.7,11.73668233]
[1755187379491,0.06,194.75,194.71,0.69]
[1755187379800,0.06,194.75,194.67,38.42]
[1755187379801,5.87482752,194.75,194.67,39.11]
[1755187379979,12.41668233,194.74,194.68,11.73668233]
[1755187380381,0.06,194.75,194.71,11.73668233]
[1755187380679,0.06,194.75,194.74,11.73668233]
[1755187380880,0.06,194.82,194.8,26.0]
[1755187381184,0.06,194.82,194.81,0.61]
[1755187381380,0.06,194.82,194.8,37.73668233]
[1755187381892,0.06,194.82,194.8,26.61]
[1755187382090,0.06,194.82,194.8,37.73668233]
[1755187382303,0.06,194.82,194.81,12.34668233]
[1755187382505,0.06,194.82,194.81,27.4528979]
[1755187382675,0.06,194.82,194.81,27.96621857]
[1755187383374,0.06,194.82,194.81,0.61]
[1755187383579,0.06,194.82,194.81,26.0]
[1755187383800,0.06,194.82,194.81,37.73668233]
[1755187384299,0.06,194.82,194.81,26.0]
[1755187384477,0.06,194.82,194.81,37.73668233]
[1755187384679,0.06,194.82,194.81,26.0]
[1755187386397,0.06,194.82,194.8,50.15668233]
[1755187386603,0.06,194.82,194.79,37.73668233]
[1755187386784,0.06,194.82,194.79,64.4]
[1755187386980,0.06,194.82,194.79,76.13668233]
[1755187387404,0.06,194.82,194.79,64.4]
[1755187387613,0.06,194.82,194.79,143.8]
[1755187388004,0.67,194.81,194.79,79.4]
[1755187388532,0.67,194.8,194.77,38.4]
[1755187388722,0.67,194.79,194.77,38.4]
[1755187388887,12.40668233,194.79,194.74,38.4]
[1755187389224,12.40668233,194.78,194.74,38.4]
[1755187389400,0.67,194.79,194.74,50.13668233]
[1755187389608,11.73668233,194.8,194.74,55.27167983]
[1755187389806,11.73668233,194.8,194.74,38.4]
[1755187390119,5.86294636,194.82,194.77,11.73668233]
[1755187390289,0.73,194.82,194.77,11.73668233]
[1755187390495,0.06,194.82,194.8,11.73668233]
[1755187390829,0.06,194.82,194.77,38.4]
[1755187391000,0.06,194.82,194.77,39.01]
[1755187391198,0.06,194.82,194.81,11.73668233]
[1755187391592,0.06,194.82,194.8,38.4]
[1755187391793,0.67,194.81,194.76,37.73668233]
[1755187391994,16.87041609,194.79,194.74,38.4]
[1755187392213,0.06,194.82,194.78,11.73668233]
[1755187392404,0.06,194.82,194.75,15.71621557]
[1755187392405,0.67,194.81,194.77,11.73668233]
[1755187392614,0.06,194.82,194.77,11.73668233]
[1755187392615,0.06,194.82,194.77,50.13668233]
[1755187392802,0.06,194.82,194.79,11.73668233]
[1755187393013,0.06,194.82,194.81,11.73668233]
[1755187393329,0.06,194.82,194.8,50.13668233]
[1755187393508,0.06,194.82,194.81,11.73668233]
[1755187393822,0.06,194.82,194.81,91.13668233]
[1755187394909,0.06,194.82,194.81,79.4]
[1755187395111,0.06,194.82,194.81,91.13668233]
[1755187395705,0.06,194.82,194.81,79.4]
[1755187396202,0.73,194.82,194.81,79.4]
[1755187397124,0.06,194.82,194.81,79.4]
[1755187398228,0.06,194.82,194.81,91.13668233]
[1755187398417,0.06,194.82,194.81,79.4]
[1755187398614,0.06,194.82,194.75,41.10621557]
[1755187398615,12.46668233,194.82,194.75,79.4]
[1755187398807,11.73668233,194.8,194.75,38.38]
[1755187399010,12.40668233,194.79,194.77,0.03]
[1755187399225,0.67,194.78,194.77,0.03]
[1755187399521,12.40668233,194.78,194.77,0.03]
[1755187399928,0.67,194.78,194.77,0.03]
[1755187400224,5.80399733,194.78,194.77,0.03]
[1755187400620,5.13399733,194.78,194.77,0.03]
[1755187400821,0.67,194.81,194.77,0.03]
[1755187400822,16.87016862,194.8,194.77,0.03]
[1755187401018,5.13348629,194.8,194.77,0.03]
[1755187401218,5.80348629,194.8,194.77,0.03]
[1755187401416,0.67,194.79,194.77,0.03]
[1755187401600,0.67,194.78,194.77,0.03]
[1755187402307,5.80399733,194.78,194.77,0.03]
[1755187404627,5.80399733,194.78,194.75,0.03]
[1755187404628,26.0,194.76,194.75,0.03]
[1755187404834,38.40668233,194.76,194.75,0.03]
[1755187405309,38.40668233,194.76,194.73,0.03]
[1755187405513,11.73668233,194.74,194.73,0.03]
[1755187405720,26.0,194.72,194.71,0.03]
[1755187405927,26.0,194.69,194.68,0.03]
[1755187406225,26.0,194.69,194.68,1e-08]
[1755187406226,38.40668233,194.69,194.68,1e-08]
[1755187406425,43.54305297,194.69,194.68,1e-08]
[1755187408545,31.13637064,194.69,194.68,1e-08]
[1755187408834,5.13637064,194.69,194.68,1e-08]
[1755187409210,17.54305297,194.69,194.68,1e-08]
[1755187409600,5.80637064,194.69,194.68,1e-08]
[1755187409805,17.54305297,194.69,194.68,1e-08]
[1755187410615,11.73668233,194.69,194.68,1e-08]
[1755187410831,16.87278916,194.7,194.68,1e-08]
[1755187411032,11.73668233,194.69,194.68,1e-08]
[1755187411326,16.87278916,194.7,194.68,1e-08]
[1755187411711,5.13587586,194.71,194.68,1e-08]
[1755187412019,0.67,194.72,194.68,1e-08]
[1755187412020,55.27223391,194.73,194.68,1e-08]
[1755187412403,11.73668233,194.72,194.68,1e-08]
[1755187412618,5.13584304,194.71,194.68,1e-08]
[1755187412817,12.83446565,194.79,194.7,11.73668233]
[1755187413020,11.73668233,194.75,194.69,79.4]
[1755187413220,12.40668233,194.75,194.69,79.4]
[1755187414240,16.87173419,194.74,194.69,79.4]
[1755187414417,11.73668233,194.72,194.69,79.4]
[1755187414736,12.40668233,194.72,194.69,79.4]
[1755187414953,12.40668233,194.71,194.69,79.4]
[1755187415126,12.40668233,194.71,194.68,1e-08]
[1755187415525,11.73668233,194.73,194.68,1e-08]
[1755187415939,5.13557929,194.72,194.68,1e-08]
[1755187416128,38.4,194.74,194.69,12.34668233]
[1755187416524,43.53510592,194.74,194.69,12.34668233]
[1755187416724,55.94178825,194.74,194.68,11.73668234]
[1755187416943,11.73668233,194.73,194.68,1e-08]
[1755187417246,12.40668233,194.72,194.68,1e-08]
[1755187417430,0.67,194.71,194.68,1e-08]
[1755187417952,12.40668233,194.71,194.68,1e-08]
[1755187418249,5.13610683,194.7,194.68,1e-08]
[1755187418639,12.40668233,194.69,194.68,1e-08]
[1755187418948,11.73668233,194.69,194.68,1e-08]
[1755187419135,12.40668233,194.69,194.68,1e-08]
[1755187419334,0.67,194.69,194.68,1e-08]
[1755187419534,12.40668233,194.69,194.68,1e-08]
[1755187419847,5.13584852,194.71,194.68,1e-08]
[1755187420225,12.40668233,194.71,194.68,1e-08]
[1755187420427,0.67,194.7,194.68,1e-08]
[1755187420617,12.40668233,194.7,194.68,1e-08]
[1755187420844,0.67,194.7,194.68,1e-08]
[1755187421126,0.67,194.69,194.68,1e-08]
[1755187421323,12.40668233,194.69,194.68,1e-08]
[1755187421726,11.73668233,194.7,194.68,1e-08]
[1755187422150,17.54305297,194.69,194.68,1e-08]
[1755187423226,55.94305297,194.69,194.68,1e-08]
[1755187423736,55.27305297,194.69,194.68,1e-08]
[1755187423935,43.53637064,194.69,194.68,1e-08]
[1755187424529,38.4,194.69,194.68,11.73668234]
[1755187424863,0.06,194.73,194.68,12.34668234]
[1755187425029,0.06,194.73,194.72,11.73668233]
[1755187425229,0.06,194.73,194.7,12.34668233]
[1755187425456,0.06,194.73,194.69,91.13668233]
[1755187425652,0.06,194.73,194.7,11.73668233]
[1755187425953,0.06,194.73,194.69,79.4]
[1755187425954,0.06,194.73,194.72,11.73668233]
[1755187426133,0.06,194.73,194.72,12.34668233]
[1755187426636,0.06,194.73,194.72,11.73668233]
[1755187427152,0.06,194.73,194.72,17.48226162]
[1755187427358,0.06,194.73,194.72,12.34668233]
[1755187427658,0.06,194.73,194.69,38.38]
[1755187427949,0.67,194.72,194.68,1e-08]
[1755187428345,5.13584304,194.71,194.68,1e-08]
[1755187428651,5.13584304,194.71,194.68,11.73668234]
[1755187428844,5.13584304,194.71,194.68,1e-08]
[1755187429051,5.13584304,194.71,194.68,79.40000001]
[1755187429629,5.13584304,194.71,194.68,80.01000001]
[1755187429849,5.13584304,194.71,194.68,79.40000001]
[1755187430256,5.13557929,194.72,194.68,79.40000001]
[1755187430760,12.40668233,194.71,194.68,79.40000001]
[1755187430945,0.67,194.7,194.68,79.40000001]
[1755187431339,17.97452752,194.72,194.68,79.40000001]
[1755187431560,0.67,194.71,194.68,79.40000001]
[1755187431765,12.40668233,194.71,194.68,79.40000001]
[1755187431933,0.67,194.7,194.68,79.40000001]
[1755187432261,5.13637064,194.69,194.68,79.40000001]
[1755187432829,62.95563056,194.72,194.68,79.40000001]
[1755187432830,5.13584304,194.71,194.68,79.40000001]
[1755187433958,5.80584304,194.71,194.68,79.40000001]
[1755187434461,5.13584304,194.71,194.68,79.40000001]
[1755187434964,5.13584304,194.71,194.68,1e-08]
[1755187435164,5.13565079,194.72,194.68,1e-08]
[1755187435334,5.13565079,194.72,194.68,11.73668234]
[1755187435652,5.19534377,194.73,194.69,11.73668233]
[1755187435835,5.19534377,194.73,194.68,12.34668234]
[1755187436437,5.19534377,194.73,194.69,0.61]
[1755187436640,5.19534377,194.73,194.69,12.34668233]
[1755187437733,0.06,194.73,194.7,11.73668233]
[1755187437934,0.06,194.73,194.72,11.73668233]
[1755187438130,0.06,194.73,194.72,106.8528979]
[1755187438451,0.06,194.73,194.72,91.13668233]
[1755187438636,0.06,194.73,194.72,129.49668233]
[1755187438831,0.06,194.73,194.72,145.2128979]
[1755187439241,0.06,194.73,194.72,130.10668233]
[1755187439448,0.06,194.73,194.72,135.24226162]
[1755187440142,0.06,194.73,194.72,79.4]
[1755187440854,0.06,194.73,194.72,91.74668233]
[1755187441362,0.06,194.73,194.72,80.01]
[1755187441536,0.06,194.73,194.72,91.13668233]
[1755187442035,0.06,194.73,194.72,91.74668233]
[1755187442235,0.06,194.73,194.72,80.01]
[1755187442465,0.06,194.73,194.72,79.4]
[1755187442848,0.06,194.73,194.72,91.13668233]
[1755187443053,0.06,194.73,194.72,91.74668233]
[1755187443345,0.06,194.73,194.72,91.13668233]
[1755187444050,0.06,194.73,194.72,91.74668233]
[1755187444235,0.06,194.73,194.72,96.88226162]
[1755187445244,0.06,194.73,194.69,146.54056783]
[1755187445245,0.06,194.73,194.69,11.73668233]
[1755187445555,0.06,194.73,194.68,1e-08]
[1755187445556,0.78,194.73,194.68,38.36000001]
[1755187445866,0.72,194.72,194.68,1e-08]
[1755187446067,0.72,194.71,194.68,1e-08]
[1755187446841,11.79668233,194.73,194.68,1e-08]
[1755187446842,5.13561661,194.72,194.68,1e-08]
[1755187447042,5.13561661,194.72,194.68,11.73668234]
[1755187447445,5.13561661,194.72,194.68,1e-08]
[1755187448050,5.85561661,194.72,194.68,1e-08]
[1755187448252,5.1953289,194.73,194.68,11.73668234]
[1755187448753,0.72,194.72,194.68,11.73668234]
[1755187448962,5.1953289,194.73,194.68,1e-08]
[1755187448963,0.72,194.71,194.68,1e-08]
[1755187449262,0.72,194.7,194.68,1e-08]
[1755187449437,0.72,194.72,194.68,1e-08]
[1755187449856,4.11958619,194.72,194.68,1e-08]
[1755187450070,0.72,194.71,194.68,1e-08]
[1755187450571,5.85595538,194.71,194.68,1e-08]
[1755187451762,0.72,194.7,194.68,1e-08]
[1755187452663,12.45668233,194.69,194.68,1e-08]
[1755187453241,15.86188193,194.69,194.68,1e-08]
[1755187454558,20.99825257,194.69,194.68,1e-08]
[1755187456679,9.26157024,194.69,194.68,1e-08]
[1755187457675,9.26157024,194.69,194.68,3.40568787]
[1755187458254,20.99825257,194.69,194.68,3.40568787]
[1755187461378,8.54157024,194.69,194.68,3.40568787]
[1755187461551,0.72,194.69,194.68,83.30568787]
[1755187461752,12.45668233,194.69,194.68,83.30568787]
[1755187461952,15.86188193,194.69,194.68,83.30568787]
[1755187462280,4.1251996,194.69,194.68,83.30568787]
[1755187462579,5.13618151,194.7,194.68,79.90000001]
[1755187462877,8.54403975,194.7,194.68,79.90000001]
[1755187463380,5.13618151,194.7,194.68,79.90000001]
[1755187465380,0.72,194.69,194.68,79.90000001]
[1755187466062,12.7741338,194.7,194.68,1e-08]
[1755187466262,0.06,194.7,194.68,7.6379523]
[1755187466560,0.06,194.7,194.69,11.77985784]
[1755187466765,0.06,194.7,194.69,4.14190555]
[1755187466971,0.06,194.7,194.69,3.53190555]
[1755187467376,0.06,194.7,194.69,11.77985784]
[1755187468759,0.06,194.7,194.69,3.53190555]
[1755187469189,0.06,194.7,194.69,11.77985784]
[1755187469572,0.06,194.7,194.69,11.16985784]
[1755187469883,0.06,194.7,194.69,3.53190555]
[1755187470189,0.06,194.7,194.69,11.16985784]
[1755187470960,0.06,194.7,194.69,11.77985784]
[1755187471380,0.06,194.7,194.69,11.16985784]
[1755187471582,8.40795229,194.7,194.69,3.53190555]
[1755187472285,0.06,194.7,194.69,3.53190555]
[1755187472666,0.06,194.7,194.68,7.6379523]
[1755187472667,0.06,194.7,194.68,1e-08]
[1755187473392,0.06,194.7,194.69,8.24795229]
[1755187473886,0.06,194.7,194.69,7.63795229]
[1755187474278,0.06,194.7,194.69,8.24795229]
[1755187474673,0.06,194.7,194.69,7.63795229]
[1755187474983,0.06,194.7,194.68,1e-08]
[1755187475784,0.06,194.7,194.68,7.6379523]
[1755187476478,0.77,194.7,194.68,1e-08]
[1755187476677,0.06,194.7,194.68,1e-08]
[1755187476881,0.06,194.7,194.69,7.63795229]
[1755187477398,0.06,194.7,194.68,7.6379523]
[1755187477902,0.06,194.7,194.68,87.5379523]
[1755187478269,0.06,194.7,194.68,79.90000001]
[1755187478468,0.06,194.7,194.68,87.5379523]
[1755187478699,0.06,194.7,194.69,7.63795229]
[1755187479491,0.06,194.7,194.68,79.90000001]
[1755187479492,0.06,194.7,194.68,87.5379523]
[1755187479994,0.71,194.69,194.68,79.90000001]
[1755187480190,0.71,194.69,194.68,1e-08]
[1755187480971,8.34795229,194.69,194.68,1e-08]
[1755187481187,39.48432293,194.69,194.68,1e-08]
[1755187481380,42.89751607,194.69,194.68,1e-08]
[1755187482183,35.25956378,194.69,194.68,1e-08]
[1755187482370,42.89751607,194.69,194.68,1e-08]
[1755187483198,35.25956378,194.69,194.68,1e-08]
[1755187483377,72.84956378,194.69,194.68,1e-08]
[1755187483569,43.43637064,194.69,194.68,1e-08]
[1755187484173,47.55487821,194.69,194.68,1e-08]
[1755187484901,47.55499103,194.69,194.68,1e-08]
[1755187485214,55.19294332,194.69,194.68,1e-08]
[1755187489875,96.29915889,194.69,194.68,1e-08]
[1755187490387,100.56544946,194.69,194.68,1e-08]
[1755187490603,26.0,194.67,194.66,1e-08]
[1755187490784,76.03657268,194.67,194.66,1e-08]
[1755187490981,81.17347102,194.67,194.66,1e-08]
[1755187492784,94.01571687,194.67,194.62,0.03]
[1755187492984,12.77590635,194.63,194.62,0.03]
[1755187493300,55.17452674,194.63,194.62,0.03]
[1755187493702,55.17452674,194.63,194.53,2.68136139]
[1755187493703,26.0,194.59,194.53,2.68136139]
[1755187494013,26.0,194.59,194.51,0.61]
[1755187494014,7.63795229,194.57,194.51,0.61]
[1755187494219,38.28,194.56,194.51,8.24795229]
[1755187494379,38.28,194.56,194.52,0.61]
[1755187494700,38.28,194.56,194.51,7.63795229]
[1755187494875,38.28,194.56,194.4,0.61]
[1755187494876,26.0,194.48,194.4,0.61]
[1755187495073,15.10621557,194.51,194.38,0.61]
[1755187495074,33.63795229,194.44,194.38,0.61]
[1755187495305,38.28,194.43,194.38,8.24795229]
[1755187495484,38.99,194.43,194.35,0.61]
[1755187495678,7.63795229,194.42,194.35,0.61]
[1755187495990,38.28,194.43,194.37,7.63795229]
[1755187495991,38.28,194.41,194.37,7.63795229]
[1755187496175,38.28,194.41,194.32,26.0]
[1755187496176,38.28,194.41,194.34,26.0]
[1755187496371,33.63795229,194.44,194.38,0.61]
[1755187496699,38.28,194.43,194.41,7.63795229]
[1755187496999,38.28,194.44,194.4,7.63795229]
[1755187497183,8.34795229,194.43,194.31,12.8660388]
[1755187497373,38.28,194.44,194.39,7.63795229]
[1755187497578,5.85263434,194.46,194.32,30.8]
[1755187497579,5.85263434,194.46,194.4,7.63795229]
[1755187497895,38.28,194.46,194.41,0.61]
[1755187498098,38.28,194.46,194.42,8.24795229]
[1755187498281,38.28,194.46,194.42,0.61]
[1755187498478,38.28,194.46,194.44,7.63795229]
[1755187498679,38.28,194.49,194.44,8.24795229]
[1755187498982,38.28,194.49,194.36,41.10621557]
[1755187498983,5.14218131,194.47,194.42,7.63795229]
[1755187499188,5.14218131,194.47,194.37,26.0]
[1755187499189,45.91795229,194.49,194.43,7.63795229]
[1755187499391,45.91795229,194.49,194.32,0.61]
[1755187499392,7.63795229,194.44,194.32,0.61]
[1755187499587,7.63795229,194.41,194.35,7.63795229]
[1755187499781,38.3,194.41,194.39,0.03]
[1755187500008,8.34795229,194.4,194.39,0.03]
[1755187500320,38.3,194.41,194.39,0.03]
[1755187500486,0.71,194.4,194.39,0.03]
[1755187500690,8.34795229,194.4,194.39,0.03]
[1755187501007,31.14685141,194.3,194.24,7.63795229]
[1755187501184,31.14685141,194.3,194.16,12.87597857]
[1755187501185,26.0,194.28,194.26,7.63795229]
[1755187501385,38.28,194.32,194.27,0.61]
[1755187501690,38.28,194.32,194.24,8.24795229]
[1755187501691,8.34795229,194.31,194.24,8.24795229]
[1755187502008,0.71,194.31,194.25,7.63795229]
[1755187502217,0.71,194.31,194.15,2.68586418]
[1755187502218,26.0,194.28,194.15,2.68586418]
[1755187502507,38.28,194.32,194.14,0.61]
[1755187502508,26.0,194.19,194.14,0.61]
[1755187502804,26.0,194.19,194.15,0.61]
[1755187503007,26.0,194.19,194.16,12.42049147]
[1755187503217,26.0,194.23,194.17,0.61]
[1755187503396,26.0,194.23,194.19,11.81049147]
[1755187503899,26.0,194.23,194.2,11.81049147]
[1755187504117,0.71,194.27,194.13,5.15118734]
[1755187504118,26.0,194.27,194.21,0.61]
[1755187504299,26.0,194.19,194.12,0.61]
[1755187504611,15.81621557,194.26,194.13,0.61]
[1755187504612,0.71,194.23,194.13,0.61]
[1755187504810,26.0,194.21,194.14,15.10621557]
[1755187504986,26.0,194.15,194.09,0.61]
[1755187505190,11.81049147,194.14,194.06,0.61]
[1755187505402,11.81049147,194.15,194.07,0.61]
[1755187505604,26.0,194.12,194.08,11.81049147]
[1755187505808,11.81049147,194.11,194.04,0.61]
[1755187506013,26.71,194.13,194.05,11.81049147]
[1755187506217,26.0,194.13,194.1,11.81049147]
[1755187506414,26.0,194.18,194.12,11.81049147]
[1755187506628,26.0,194.21,194.16,11.81049147]
[1755187506808,28.11671489,194.2,194.11,15.10621557]